bitfinex-derivatives/quotes_SOLF0:USTF0_20251006
["timestamp","ask_amount","ask_price","bid_price","bid_amount"]
[1759757844296,1.06859742,234.17,233.96,59.8211]
[1759757844496,110.02,234.16,233.98,3.57483669]
[1759757844704,3.8427,234.14,233.99,3.57483669]
[1759757844997,110.02,234.16,234.0,11.55483669]
[1759757845197,110.02,234.16,234.01,3.57483669]
[1759757845401,110.02,234.16,234.0,7.98]
[1759757845402,3.8425,234.15,234.0,15.39973669]
[1759757845602,110.02,234.16,234.0,7.98]
[1759757845901,110.02,234.16,234.05,3.844]
[1759757846103,110.02,234.16,234.02,11.55483669]
[1759757846602,110.02,234.16,234.03,3.57483669]
[1759757846805,110.02,234.16,234.06,7.98]
[1759757846998,59.7184,234.37,234.1,7.98]
[1759757846999,110.08,234.29,234.1,7.98]
[1759757847199,110.08,234.29,234.13,59.7778]
[1759757847399,110.08,234.29,234.14,3.8426]
[1759757848198,110.08,234.29,234.12,7.98]
[1759757848898,59.7397,234.28,234.12,7.98]
[1759757849103,113.9202,234.29,234.14,7.98]
[1759757849605,110.08,234.29,234.14,7.98]
[1759757849804,109.98,234.36,234.19,7.98]
[1759757850301,109.98,234.36,234.21,7.98]
[1759757850899,59.7236,234.35,234.21,7.98]
[1759757851200,59.7303,234.32,234.16,7.98]
[1759757851506,59.7348,234.3,234.16,7.98]
[1759757851707,3.8406,234.27,234.16,7.98]
[1759757851900,110.04,234.29,234.16,7.98]
[1759757852900,110.04,234.29,234.18,59.7637]
[1759757853100,110.04,234.29,234.17,7.98]
[1759757853507,110.04,234.29,234.18,3.842]
[1759757854006,110.04,234.29,234.2,3.8415]
[1759757854206,110.04,234.29,234.17,7.98]
[1759757855809,110.04,234.29,234.17,67.7463]
[1759757856310,110.04,234.29,234.17,7.98]
[1759757856909,110.04,234.29,234.19,3.8417]
[1759757857109,110.04,234.29,234.19,59.7621]
[1759757857809,109.94,234.36,234.21,59.7562]
[1759757858107,109.94,234.36,234.24,7.37]
[1759757858909,109.94,234.36,234.19,7.59545938]
[1759757859207,3.8405,234.27,234.1,11.2132]
[1759757859412,83.22,234.27,234.12,7.37]
[1759757859607,59.704,234.42,234.18,7.37]
[1759757859808,0.74276445,234.45,234.3,7.37]
[1759757860016,59.6668,234.57,234.37,59.7166]
[1759757860311,59.6603,234.6,234.37,59.7166]
[1759757860312,3.8352,234.6,234.41,7.37]
[1759757860512,59.6633,234.58,234.34,7.37]
[1759757860809,411.13545938,234.63,234.34,14.96545938]
[1759757860810,3.837,234.49,234.34,14.96545938]
[1759757861116,172.1825,234.51,234.34,7.37]
[1759757861411,59.6958,234.46,234.28,318.29]
[1759757861807,3.838,234.43,234.28,322.1303]
[1759757862208,59.6915,234.47,234.28,318.29]
[1759757862410,3.8377,234.45,234.28,318.29]
[1759757862813,67.27225938,234.53,234.28,318.29]
[1759757862814,60.41295544,234.56,234.3,7.37]
[1759757863011,60.41295544,234.56,234.29,59.737]
[1759757863012,101.96,234.59,234.37,14.96545938]
[1759757863310,101.96,234.59,234.38,14.96545938]
[1759757863510,101.96,234.59,234.4,3.8384]
[1759757863704,101.96,234.59,234.41,7.37]
[1759757864112,59.6467,234.65,234.42,7.59545938]
[1759757864309,59.6417,234.67,234.38,59.7141]
[1759757864310,59.6563,234.61,234.43,7.37]
[1759757864510,59.6635,234.58,234.43,7.37]
[1759757864818,59.6563,234.61,234.43,7.37]
[1759757865116,59.666,234.57,234.43,7.37]
[1759757865319,59.6619,234.59,234.43,7.37]
[1759757865619,59.6685,234.56,234.43,7.37]
[1759757865817,3.8355,234.58,234.43,7.37]
[1759757866113,59.6509,234.63,234.4,59.7075]
[1759757866114,172.3864,234.65,234.44,67.0682]
[1759757866318,112.74,234.65,234.49,7.37]
[1759757866715,112.74,234.65,234.51,7.37]
[1759757867219,310.8,234.77,234.52,3.8364]
[1759757867409,113.2,234.73,234.53,7.37]
[1759757867810,310.8,234.77,234.56,59.6677]
[1759757868007,113.42,234.76,234.55,120.79]
[1759757868311,1391.2157,234.93,234.55,120.79]
[1759757868312,59.5771,234.92,234.71,67.2098]
[1759757868514,59.5795,234.91,234.73,7.58]
[1759757869314,59.5845,234.89,234.73,7.58]
[1759757869809,59.5744,234.93,234.73,7.58]
[1759757870211,12.48792908,234.96,234.73,7.58]
[1759757870417,59.5728,234.94,234.73,116.8]
[1759757870619,12.48792908,234.96,234.74,7.58]
[1759757871016,72.05512908,234.96,234.74,7.58]
[1759757871213,72.05512908,234.96,234.68,59.6369]
[1759757871214,7.59545938,234.9,234.62,59.6527]
[1759757871414,91.6452,234.89,234.64,7.58]
[1759757871610,59.5973,234.84,234.64,7.58]
[1759757872010,59.6051,234.81,234.64,7.58]
[1759757872321,59.5999,234.83,234.64,7.58]
[1759757872510,59.5931,234.86,234.64,7.58]
[1759757872511,59.6024,234.82,234.64,7.58]
[1759757872716,59.6024,234.82,234.64,27.44]
[1759757872717,63.434,234.82,234.64,27.44]
[1759757873120,63.434,234.82,234.64,7.58]
[1759757873721,63.4427,234.79,234.64,7.58]
[1759757873924,59.6106,234.79,234.64,7.58]
[1759757874217,59.6198,234.76,234.64,7.58]
[1759757874421,63.4523,234.76,234.56,7.58]
[1759757874619,3.8325,234.76,234.59,7.58]
[1759757874916,114.9,234.8,234.63,7.58]
[1759757876211,114.9,234.8,234.63,11.4145]
[1759757876410,114.9,234.8,234.63,7.58]
[1759757876611,59.6159,234.77,234.63,7.58]
[1759757876914,114.88,234.79,234.56,33.72]
[1759757877120,59.6178,234.76,234.57,7.58]
[1759757877324,3.8331,234.73,234.57,7.58]
[1759757877511,59.6178,234.76,234.57,7.58]
[1759757877711,114.88,234.79,234.58,63.4985]
[1759757877911,114.88,234.79,234.58,3.8354]
[1759757878117,59.6202,234.75,234.58,3.8354]
[1759757878410,59.6282,234.72,234.57,7.58]
[1759757878714,59.6355,234.69,234.51,7.58]
[1759757878920,59.6282,234.72,234.51,7.58]
[1759757878921,178.4064,234.7,234.51,7.58]
[1759757879115,59.6407,234.67,234.51,7.58]
[1759757879310,59.6407,234.67,234.44,59.6973]
[1759757879311,59.6483,234.64,234.44,59.6973]
[1759757879519,59.6483,234.64,234.45,7.58]
[1759757879520,63.4883,234.62,234.45,7.58]
[1759757879715,59.6582,234.6,234.41,11.33888534]
[1759757879910,3.8353,234.59,234.41,15.17708534]
[1759757880112,59.6636,234.58,234.41,11.33888534]
[1759757880313,59.6739,234.54,234.41,11.33888534]
[1759757880513,3.8368,234.5,234.33,7.58]
[1759757880822,59.699,234.44,234.27,7.58]
[1759757881013,7.59545938,234.45,234.27,7.58]
[1759757881217,46.22,234.44,234.27,7.58]
[1759757881418,151.5084,234.49,234.27,7.58]
[1759757881619,63.5315,234.46,234.27,7.58]
[1759757882009,151.5084,234.49,234.28,63.5796]
[1759757882010,7.59545938,234.47,234.28,63.5796]
[1759757882214,7.59545938,234.52,234.34,59.7239]
[1759757882517,7.59545938,234.57,234.37,59.7162]
[1759757882717,7.59545938,234.61,234.42,59.7033]
[1759757882924,115.28,234.6,234.43,59.7008]
[1759757883214,115.28,234.6,234.42,7.58]
[1759757883215,115.28,234.6,234.42,11.418]
[1759757883418,115.28,234.6,234.42,67.2836]
[1759757883619,115.28,234.6,234.39,59.7103]
[1759757883620,174.9385,234.6,234.38,59.7141]
[1759757883811,115.28,234.6,234.42,59.7035]
[1759757884017,115.28,234.6,234.4,7.58]
[1759757884319,122.99545938,234.6,234.41,59.7054]
[1759757884517,122.99545938,234.6,234.44,59.6988]
[1759757884716,122.99545938,234.6,234.45,59.6961]
[1759757884914,115.4,234.6,234.45,59.6952]
[1759757885217,115.4,234.6,234.45,67.2756]
[1759757885419,310.3,234.62,234.5,59.6835]
[1759757885616,310.3,234.62,234.51,59.681]
[1759757885817,310.3,234.62,234.5,67.2635]
[1759757886017,115.52,234.66,234.54,59.673]
[1759757886316,115.52,234.66,234.55,67.2502]
[1759757886517,115.52,234.66,234.55,11.4159]
[1759757886823,115.52,234.66,234.56,59.6682]
[1759757887116,115.52,234.66,234.57,59.6655]
[1759757887311,310.4,234.78,234.59,59.6605]
[1759757887513,115.5,234.77,234.61,3.8348]
[1759757887717,115.52,234.76,234.58,7.58]
[1759757889120,63.4612,234.72,234.52,7.58]
[1759757889316,59.6303,234.71,234.52,7.58]
[1759757889816,59.643,234.66,234.52,7.58]
[1759757890017,115.44,234.67,234.47,67.2707]
[1759757890218,72.38,234.69,234.52,7.58]
[1759757891322,72.38,234.69,234.52,67.2581]
[1759757891517,72.38,234.69,234.53,59.6759]
[1759757891721,72.38,234.69,234.56,3.8356]
[1759757891923,72.38,234.69,234.57,67.2456]
[1759757892230,72.38,234.69,234.51,59.6799]
[1759757892420,72.38,234.69,234.52,7.58]
[1759757892621,72.38,234.69,234.55,59.6695]
[1759757892821,72.38,234.69,234.57,7.58]
[1759757893018,377.60985938,234.78,234.57,7.58]
[1759757893222,59.6263,234.73,234.57,7.58]
[1759757893422,115.34,234.77,234.57,7.58]
[1759757893623,59.5977,234.84,234.55,59.6699]
[1759757893624,59.5977,234.84,234.6,59.6578]
[1759757893823,85.68,234.83,234.62,59.653]
[1759757894023,85.68,234.83,234.61,59.6555]
[1759757894024,85.68,234.83,234.65,59.6446]
[1759757894228,67.20345938,234.8,234.58,7.58]
[1759757894429,67.20345938,234.8,234.6,59.6577]
[1759757894623,3.8325,234.77,234.58,7.58]
[1759757894828,1.06523055,234.79,234.6,59.6579]
[1759757895027,12.48792908,234.96,234.65,67.2235]
[1759757895323,12.48792908,234.96,234.7,7.58]
[1759757895324,7.59545938,234.89,234.7,7.58]
[1759757895524,1.06486073,234.88,234.7,7.58]
[1759757895725,4.89546073,234.88,234.7,7.58]
[1759757895917,1.06486073,234.88,234.71,59.63]
[1759757896121,7.59545938,234.91,234.73,59.6247]
[1759757896122,1.06486073,234.9,234.73,59.6247]
[1759757896321,1.06486073,234.9,234.71,59.63]
[1759757896322,1.06486073,234.9,234.75,3.8326]
[1759757896524,1.06486073,234.9,234.7,7.58]
[1759757896721,3.8308,234.87,234.7,7.58]
[1759757896922,59.594,234.86,234.7,7.58]
[1759757897125,59.6034,234.82,234.63,15.17545938]
[1759757897325,3.8323,234.78,234.63,7.58]
[1759757897720,59.6106,234.79,234.63,7.58]
[1759757897925,59.6049,234.81,234.63,7.58]
[1759757898127,59.6075,234.8,234.63,7.58]
[1759757898327,59.6103,234.79,234.63,7.58]
[1759757898529,115.8,234.82,234.63,7.58]
[1759757898730,59.6133,234.78,234.63,7.58]
[1759757898929,3.8331,234.73,234.63,7.58]
[1759757899134,59.6079,234.8,234.63,7.58]
[1759757899328,1.06519279,234.79,234.63,7.58]
[1759757899528,1.06519279,234.81,234.63,7.58]
[1759757899732,59.6129,234.78,234.63,7.58]
[1759757900024,175.4032,234.82,234.63,7.58]
[1759757900225,4.89682782,234.81,234.66,3.834]
[1759757900431,1.06512782,234.81,234.66,3.834]
[1759757900830,80.05986865,234.96,234.68,3.8337]
[1759757900831,59.5874,234.88,234.68,3.8337]
[1759757901029,116.78507042,234.87,234.7,7.35]
[1759757901234,115.72,234.87,234.73,59.624]
[1759757901432,115.72,234.87,234.76,59.617]
[1759757901639,115.72,234.87,234.77,7.35]
[1759757901932,115.72,234.87,234.79,3.8319]
[1759757902132,115.72,234.87,234.77,7.35]
[1759757902931,115.72,234.87,234.77,11.1823]
[1759757903131,115.72,234.87,234.77,7.35]
[1759757904529,115.72,234.87,234.77,11.1822]
[1759757904834,115.72,234.87,234.79,3.832]
[1759757905028,12.48792908,234.96,234.79,66.9598]
[1759757905333,12.48792908,234.96,234.89,7.35]
[1759757905533,4.51792908,234.96,234.89,7.35]
[1759757905729,57.42998073,235.0,234.96,59.5654]
[1759757906033,57.42998073,235.0,234.94,64.30935865]
[1759757906034,57.42998073,235.0,234.97,7.35]
[1759757906231,57.42998073,235.0,234.91,7.35]
[1759757906535,57.42998073,235.0,234.91,123.49]
[1759757906737,57.42998073,235.0,234.91,7.35]
[1759757907033,57.42998073,235.0,234.92,3.63948244]
[1759757907245,57.23051839,235.0,234.93,3.63948244]
[1759757907532,57.23051839,235.0,234.92,59.9954]
[1759757907533,57.23051839,235.0,234.97,7.35]
[1759757907733,57.23051839,235.0,234.98,10.98948244]
[1759757907937,57.23051839,235.0,234.99,3.63948244]
[1759757908233,57.23051839,235.0,234.94,4.73845865]
[1759757908234,57.23051839,235.0,234.92,7.35]
[1759757908436,57.23051839,235.0,234.93,7.35]
[1759757908623,57.23051839,235.0,234.88,59.5862]
[1759757908624,57.23051839,235.0,234.96,7.35]
[1759757909038,57.23051839,235.0,234.98,7.35]
[1759757909236,50.54191839,235.0,234.97,59.5638]
[1759757909437,50.54191839,235.0,234.99,7.35]
[1759757909631,26.22551839,235.0,234.99,12.08845865]
[1759757909827,7.63,235.15,234.99,72.06525865]
[1759757910031,7.63,235.21,235.05,59.5423]
[1759757910226,7.63,235.21,235.03,64.28655865]
[1759757910426,7.63,235.21,235.03,59.5481]
[1759757910628,7.63,235.21,235.01,59.553]
[1759757910828,7.63,235.2,235.0,4.73845865]
[1759757911039,59.509,235.19,235.0,4.73845865]
[1759757911239,7.63,235.16,234.95,310.02]
[1759757911443,59.519,235.15,234.98,4.73845865]
[1759757911732,7.63,235.14,235.02,59.5512]
[1759757911932,7.63,235.14,234.98,4.73845865]
[1759757912334,7.63,235.14,235.0,64.29495865]
[1759757912726,7.63,235.21,235.03,63.3765]
[1759757912930,7.63,235.21,235.05,59.5434]
[1759757913132,7.63,235.21,235.05,59.5433]
[1759757913436,7.63,235.21,235.06,3.39313639]
[1759757913635,7.63,235.21,235.07,3.39313639]
[1759757913835,7.63,235.17,235.08,3.39313639]
[1759757914030,7.63,235.17,235.09,3.39313639]
[1759757914235,7.63,235.17,235.1,3.39313639]
[1759757914437,7.63,235.17,235.11,3.39313639]
[1759757914632,7.63,235.17,235.12,3.39313639]
[1759757914836,59.5262,235.12,235.0,3.47738601]
[1759757915034,67.1843,235.01,234.83,4.74679086]
[1759757915231,67.1843,235.01,234.77,7.12018629]
[1759757915232,7.63,234.97,234.77,4.74679086]
[1759757915440,7.94,234.94,234.78,59.6122]
[1759757915636,7.94,235.0,234.83,59.5995]
[1759757915837,11.7671,235.1,234.93,3.8297]
[1759757916135,7.94,235.08,234.88,59.586]
[1759757916335,67.4768,235.08,234.89,59.5845]
[1759757916535,67.4768,235.08,234.87,4.73845865]
[1759757916536,3.8279,235.05,234.9,3.8302]
[1759757916840,7.94,235.08,234.91,59.5794]
[1759757917040,7.94,235.08,234.92,3.8298]
[1759757917240,7.94,235.08,234.93,59.5738]
[1759757917440,7.94,235.08,234.92,3.8299]
[1759757917735,7.94,235.08,234.94,59.5713]
[1759757917938,7.94,235.08,234.92,3.8299]
[1759757918533,59.5391,235.07,234.83,64.34399086]
[1759757918741,7.94,235.02,234.84,59.5967]
[1759757918933,7.94,235.02,234.86,59.592]
[1759757919135,7.94,235.11,235.01,59.5538]
[1759757919441,7.94,235.11,234.99,59.559]
[1759757919945,12.67845865,235.18,235.02,59.551]
[1759757920241,12.67845865,235.18,235.0,59.5562]
[1759757920242,3.8259,235.17,235.0,59.5562]
[1759757920441,3.8259,235.17,234.96,64.30485865]
[1759757920442,64.25125865,235.18,234.97,59.5642]
[1759757920638,7.94,235.17,234.97,59.5642]
[1759757920841,7.94,235.14,234.97,59.5642]
[1759757921036,7.94,235.14,234.98,59.5616]
[1759757921236,7.94,235.14,234.99,3.8287]
[1759757921637,7.94,235.14,234.99,59.559]
[1759757921837,7.94,235.14,235.03,3.828]
[1759757922342,7.94,235.14,234.98,59.5603]
[1759757922541,117.18,235.18,235.03,59.5487]
[1759757922736,117.18,235.18,235.02,59.5506]
[1759757923242,117.18,235.18,234.99,4.73845865]
[1759757923243,7.94,235.17,235.0,117.1]
[1759757923439,7.94,235.17,235.01,59.5541]
[1759757923845,7.94,235.17,235.05,3.8277]
[1759757924048,7.94,235.17,234.99,4.73845865]
[1759757924248,7.94,235.09,234.92,59.5763]
[1759757924449,7.94,235.09,234.9,309.82]
[1759757924650,7.94,235.09,234.91,59.5793]
[1759757924853,7.94,235.09,234.95,3.8293]
[1759757925152,59.5365,235.08,234.9,309.82]
[1759757925349,59.5401,235.07,234.9,309.82]
[1759757925546,7.94,235.06,234.9,309.82]
[1759757925749,7.94,235.06,234.91,59.5794]
[1759757925948,7.94,235.06,234.9,309.82]
[1759757926145,7.94,235.04,234.84,4.74679086]
[1759757926351,59.5512,235.03,234.85,19.65318004]
[1759757926549,7.94,235.02,234.85,15.82228004]
[1759757926743,7.94,235.02,234.86,3.37923497]
[1759757926948,7.94,235.02,234.89,4.73845865]
[1759757927145,0.74048067,235.16,234.91,64.31785865]
[1759757927146,51.84,235.08,234.91,64.31785865]
[1759757927347,51.84,235.08,234.92,3.37923497]
[1759757927549,7.94,235.08,234.93,3.37923497]
[1759757927751,7.94,235.08,234.94,3.37923497]
[1759757928053,59.5398,235.07,234.95,3.37923497]
[1759757928353,7.61,235.03,234.96,3.37923497]
[1759757928555,7.61,235.03,234.97,3.37923497]
[1759757928749,3.828,235.04,234.98,3.38648831]
[1759757928955,7.61,235.05,234.92,59.5768]
[1759757929153,116.98,235.1,234.93,8.12401932]
[1759757929351,7.61,235.09,234.94,3.38556067]
[1759757929555,59.5368,235.08,234.95,3.38556067]
[1759757929756,7.61,235.06,234.96,3.38556067]
[1759757929958,7.61,235.06,234.97,3.38556067]
[1759757930157,7.61,235.06,234.98,3.38556067]
[1759757930354,59.5392,235.07,234.88,69.07064951]
[1759757930355,7.61,235.01,234.99,3.38556067]
[1759757930560,7.61,235.01,234.89,3.8304]
[1759757930860,3.829,234.98,234.87,4.74679086]
[1759757931359,7.61,235.01,234.87,4.74679086]
[1759757931552,7.61,235.01,234.84,4.74679086]
[1759757931755,116.9,235.0,234.84,4.74679086]
[1759757931955,116.9,235.0,234.81,4.73845865]
[1759757931956,116.9,235.0,234.83,4.74679086]
[1759757932155,7.61,234.98,234.83,4.74679086]
[1759757932455,59.5744,234.93,234.81,4.74679086]
[1759757932862,3.8307,234.88,234.8,4.74679086]
[1759757933061,124.39,234.9,234.8,4.74679086]
[1759757933362,59.5897,234.87,234.79,4.74679086]
[1759757933661,7.61,234.85,234.78,4.74679086]
[1759757934165,7.61,234.85,234.79,4.74679086]
[1759757934462,3.8315,234.83,234.79,4.74679086]
[1759757934662,7.61,234.83,234.78,4.74679086]
[1759757935058,59.5957,234.85,234.78,4.74679086]
[1759757935463,59.5957,234.85,234.71,7.12018629]
[1759757935464,7.61,234.81,234.71,7.12018629]
[1759757935665,3.8324,234.77,234.69,7.12018629]
[1759757936059,116.78,234.8,234.68,7.12018629]
[1759757936365,7.61,234.81,234.72,7.12018629]
[1759757936560,314.57845865,234.89,234.71,59.6298]
[1759757936561,113.34,234.85,234.71,59.6298]
[1759757936763,113.34,234.85,234.67,9.73018629]
[1759757936963,59.6027,234.82,234.67,2.61]
[1759757937261,3.832,234.8,234.67,2.61]
[1759757937463,7.61,234.81,234.67,2.61]
[1759757937666,7.61,234.81,234.67,6.4439]
[1759757937860,7.61,234.81,234.67,2.61]
[1759757938060,124.33,234.81,234.65,59.6454]
[1759757938267,7.61,234.81,234.67,59.6402]
[1759757938469,7.61,234.81,234.68,59.6375]
[1759757938766,7.61,234.81,234.69,62.2452]
[1759757938971,7.61,234.81,234.7,59.6326]
[1759757939171,7.61,234.87,234.69,2.61]
[1759757939370,67.2052,234.85,234.69,2.61]
[1759757939565,7.61,234.85,234.69,2.61]
[1759757939768,124.39,234.85,234.74,3.8327]
[1759757939968,124.39,234.85,234.71,59.6296]
[1759757940164,426.62,234.89,234.77,3.8323]
[1759757940371,426.62,234.89,234.78,59.6122]
[1759757940665,3.8295,234.95,234.79,2.61]
[1759757940873,7.61,234.95,234.79,2.61]
[1759757941067,7.61,234.95,234.82,59.6022]
[1759757941263,7.61,234.95,234.81,59.6047]
[1759757941571,7.61,234.95,234.84,59.5967]
[1759757941773,116.8,234.98,234.89,3.8303]
[1759757941968,116.8,234.98,234.85,2.61]
[1759757942178,7.61,234.97,234.79,2.61]
[1759757942665,67.1751,234.97,234.8,3.33895865]
[1759757942864,7.61,234.97,234.81,3.33895865]
[1759757943065,7.61,234.97,234.79,2.61]
[1759757943066,59.5669,234.96,234.82,3.33895865]
[1759757943267,59.5814,234.91,234.73,7.34845865]
[1759757943469,3.8303,234.9,234.76,3.8325]
[1759757943671,7.61,234.93,234.76,3.8325]
[1759757943672,67.186,234.93,234.76,3.8325]
[1759757943872,7.61,234.93,234.77,64.35315865]
[1759757944078,7.61,234.93,234.8,3.8318]
[1759757944671,3.829,234.98,234.81,64.34255865]
[1759757944874,124.33,234.99,234.82,59.6016]
[1759757945176,124.33,234.99,234.82,59.6022]
[1759757945177,128.1588,234.99,234.82,59.6022]
[1759757945376,124.33,234.99,234.8,2.61]
[1759757945576,124.33,234.99,234.82,4.73845865]
[1759757945776,59.5668,234.96,234.8,7.34845865]
[1759757945978,7.61,234.95,234.8,7.34845865]
[1759757946173,3.8301,234.91,234.8,2.61]
[1759757946378,59.5781,234.92,234.77,8.57065865]
[1759757946678,7.61,234.91,234.77,4.73845865]
[1759757946878,12.34845865,235.02,234.81,4.73845865]
[1759757947080,116.64,234.95,234.81,4.73845865]
[1759757947578,59.585,234.89,234.73,7.34845865]
[1759757947779,7.61,234.88,234.73,7.34845865]
[1759757947981,59.5908,234.87,234.71,3.8333]
[1759757948175,7.61,234.79,234.67,7.12018629]
[1759757948378,431.29845865,234.86,234.6,2.61]
[1759757948379,3.8331,234.73,234.6,2.61]
[1759757949079,3.8334,234.71,234.56,4.73845865]
[1759757949580,7.61,234.7,234.54,2.61]
[1759757949878,7.61,234.7,234.56,59.668]
[1759757950084,7.61,234.7,234.59,3.8352]
[1759757950284,7.61,234.7,234.59,59.6597]
[1759757950477,64.34495865,234.81,234.59,59.6597]
[1759757950478,7.61,234.8,234.6,59.6581]
[1759757950678,67.23,234.75,234.59,2.61]
[1759757950874,59.6229,234.74,234.59,2.61]
[1759757951082,7.61,234.75,234.59,2.61]
[1759757951282,124.83,234.75,234.6,59.6579]
[1759757951690,124.83,234.75,234.65,3.8342]
[1759757951984,7.61,234.75,234.62,59.6529]
[1759757952382,7.61,234.75,234.63,3.8346]
[1759757952576,7.61,234.75,234.59,2.61]
[1759757953181,7.61,234.73,234.55,4.73845865]
[1759757953382,3.8336,234.7,234.54,2.61]
[1759757953583,7.61,234.73,234.54,2.61]
[1759757953987,3.8334,234.71,234.57,3.8355]
[1759757954687,3.8337,234.69,234.54,2.61]
[1759757954883,7.61,234.73,234.56,59.668]
[1759757955088,7.61,234.73,234.55,59.6705]
[1759757955089,7.61,234.73,234.58,59.6628]
[1759757955287,7.61,234.73,234.57,4.73845865]
[1759757955590,7.61,234.73,234.55,59.6705]
[1759757955889,3.8334,234.71,234.59,3.8352]
[1759757956285,59.6368,234.69,234.54,6.446]
[1759757956584,116.96,234.68,234.54,2.61]
[1759757956786,7.61,234.7,234.58,3.8354]
[1759757957588,7.61,234.7,234.54,62.2824]
[1759757957785,7.61,234.7,234.55,59.6709]
[1759757957988,3.8337,234.69,234.54,2.61]
[1759757958286,7.61,234.7,234.47,2.63]
[1759757958287,7.85,234.63,234.47,2.63]
[1759757958982,7.85,234.63,234.48,59.6883]
[1759757959188,7.85,234.63,234.47,2.63]
[1759757959189,11.6847,234.63,234.47,2.63]
[1759757959485,7.85,234.63,234.48,64.42575865]
[1759757959678,7.85,234.63,234.47,7.36845865]
[1759757959880,7.85,234.63,234.48,59.6886]
[1759757960085,7.85,234.63,234.5,59.6829]
[1759757960391,7.85,234.63,234.49,59.6861]
[1759757960786,7.85,234.63,234.5,59.6823]
[1759757960986,317.97,234.7,234.54,59.6725]
[1759757961181,317.97,234.7,234.57,59.6656]
[1759757961385,317.97,234.7,234.6,3.8351]
[1759757961589,317.97,234.7,234.53,2.63]
[1759757961790,317.97,234.7,234.57,59.6656]
[1759757962386,317.97,234.7,234.62,3.8347]
[1759757962588,317.97,234.7,234.56,4.73845865]
[1759757962787,317.97,234.7,234.57,59.6657]
[1759757962992,317.97,234.7,234.58,59.6625]
[1759757963191,317.97,234.7,234.59,59.6602]
[1759757963388,7.85,234.8,234.63,59.6504]
[1759757963593,116.74,234.79,234.67,3.8339]
[1759757963788,7.85,234.8,234.65,59.645]
[1759757963997,7.85,234.8,234.69,59.6347]
[1759757964293,116.74,234.81,234.73,3.833]
[1759757964495,116.74,234.81,234.69,59.6339]
[1759757964887,7.85,234.8,234.68,2.63]
[1759757965392,7.85,234.8,234.72,3.8331]
[1759757965593,7.85,234.8,234.68,2.63]
[1759757965796,7.85,234.8,234.65,59.6444]
[1759757965797,11.682,234.8,234.65,3.8342]
[1759757966092,11.682,234.8,234.64,59.6478]
[1759757966292,11.682,234.8,234.61,62.2839]
[1759757966293,7.85,234.8,234.62,59.6527]
[1759757966487,7.85,234.8,234.61,2.63]
[1759757966488,3.8325,234.76,234.61,2.63]
[1759757966883,7.85,234.78,234.61,2.63]
[1759757967087,3.8329,234.74,234.65,3.8342]
[1759757967289,3.8329,234.74,234.61,2.63]
[1759757967490,7.85,234.78,234.61,2.63]
[1759757967792,59.6114,234.79,234.61,2.63]